[Event "Late-Titled-Tuesday-Blitz-September-26-2023"]
[Site "Chess.com"]
[Date "2023.09.26"]
[Round "3"]
[White "ShahxaibKhan"]
[Black "ChadBiryani"]
[Result "0-1"]
[WhiteElo "2276"]
[BlackElo "2491"]
[TimeControl "180+1"]
[EndTime "14:27:14 PDT"]
[Termination "ChadBiryani won on time"]

1. e4 {[%clk 0:03:00.9]} 1... g6 {[%clk 0:02:59]} 2. d4 {[%clk 0:03:00.4]} 2...
Bg7 {[%clk 0:02:59.6]} 3. h4 {[%clk 0:03:00.3]} 3... h5 {[%clk 0:02:58.2]} 4.
Nc3 {[%clk 0:02:59.8]} 4... c5 {[%clk 0:02:58.1]} 5. Be3 {[%clk 0:02:59.5]} 5...
cxd4 {[%clk 0:02:54.3]} 6. Bxd4 {[%clk 0:02:59.4]} 6... Nf6 {[%clk 0:02:55]} 7.
e5 {[%clk 0:02:57.6]} 7... Ng4 {[%clk 0:02:55.1]} 8. e6 {[%clk 0:02:54.1]} 8...
f6 {[%clk 0:02:38.7]} 9. exd7+ {[%clk 0:02:51.6]} 9... Qxd7 {[%clk 0:02:29.3]}
10. f3 {[%clk 0:02:23.8]} 10... Nc6 {[%clk 0:02:26.3]} 11. Bb5 {[%clk
0:02:12.3]} 11... Nh6 {[%clk 0:02:18.3]} 12. Qd2 {[%clk 0:02:07.9]} 12... Nf5
{[%clk 0:02:10.4]} 13. Bf2 {[%clk 0:02:04.1]} 13... Qxd2+ {[%clk 0:02:07.7]} 14.
Kxd2 {[%clk 0:02:05]} 14... Bd7 {[%clk 0:02:05.1]} 15. Bd3 {[%clk 0:01:38.1]}
15... O-O-O {[%clk 0:01:52.8]} 16. Re1 {[%clk 0:01:16.9]} 16... Bh6+ {[%clk
0:01:51.4]} 17. Ke2 {[%clk 0:01:14.2]} 17... e5 {[%clk 0:01:39.1]} 18. g4 {[%clk
0:01:11.9]} 18... Nfd4+ {[%clk 0:01:38.9]} 19. Bxd4 {[%clk 0:01:09.7]} 19...
Nxd4+ {[%clk 0:01:39.1]} 20. Kf2 {[%clk 0:01:09.8]} 20... hxg4 {[%clk
0:01:39.5]} 21. Bxg6 {[%clk 0:01:07.4]} 21... g3+ {[%clk 0:01:37.5]} 22. Kg2
{[%clk 0:01:05.5]} 22... Rhg8 {[%clk 0:01:24.4]} 23. h5 {[%clk 0:01:03.7]} 23...
Bc6 {[%clk 0:01:23.2]} 24. Be4 {[%clk 0:00:54.6]} 24... Bxe4 {[%clk 0:01:14.7]}
25. Nxe4 {[%clk 0:00:54.5]} 25... Nxc2 {[%clk 0:01:14]} 26. Re2 {[%clk
0:00:45.5]} 26... Nd4 {[%clk 0:01:13.6]} 27. Re1 {[%clk 0:00:42.7]} 27... Nc2
{[%clk 0:01:13.3]} 28. Re2 {[%clk 0:00:42.6]} 28... Ne3+ {[%clk 0:01:13.3]} 29.
Kh3 {[%clk 0:00:37.9]} 29... g2 {[%clk 0:01:04.3]} 30. Rh2 {[%clk 0:00:36.2]}
30... Rd1 {[%clk 0:01:03.6]} 31. Rhxg2 {[%clk 0:00:24.4]} 31... Rxg2 {[%clk
0:01:00.3]} 32. Rxg2 {[%clk 0:00:22.2]} 32... Nxg2 {[%clk 0:01:00.3]} 33. Kxg2
{[%clk 0:00:21.9]} 33... f5 {[%clk 0:01:00.4]} 34. Nc3 {[%clk 0:00:11.9]} 34...
Rd2+ {[%clk 0:01:00.2]} 35. Kf1 {[%clk 0:00:11.5]} 35... Rxb2 {[%clk 0:00:59.9]}
36. Nd5 {[%clk 0:00:05.4]} 36... Kd7 {[%clk 0:00:52]} 37. Nc3 {[%clk 0:00:02.4]}
37... Rc2 {[%clk 0:00:47.4]} 38. Nd1 {[%clk 0:00:02.2]} 38... Rxa2 {[%clk
0:00:47.3]} 39. Ne2 {[%clk 0:00:02.3]} 39... Ra1 {[%clk 0:00:42.5]} 40. Nc3
{[%clk 0:00:01.6]} 40... b5 {[%clk 0:00:41.9]} 41. Ke2 {[%clk 0:00:02.5]} 41...
b4 {[%clk 0:00:41.7]} 42. Nd5 {[%clk 0:00:01.4]} 42... a5 {[%clk 0:00:41.3]} 0-1

[Event "Late-Titled-Tuesday-Blitz-September-26-2023"]
[Site "Chess.com"]
[Date "2023.09.26"]
[Round "3"]
[White "AEMEffi"]
[Black "rose107"]
[Result "1-0"]
[WhiteElo "2358"]
[BlackElo "2083"]
[TimeControl "180+1"]
[EndTime "14:27:15 PDT"]
[Termination "AEMEffi won by resignation"]

1. d4 {[%clk 0:02:57.6]} 1... d5 {[%clk 0:02:59.9]} 2. c4 {[%clk 0:02:58]} 2...
e5 {[%clk 0:02:58.6]} 3. dxe5 {[%clk 0:02:57.2]} 3... d4 {[%clk 0:02:58.2]} 4.
Nf3 {[%clk 0:02:57.2]} 4... Nc6 {[%clk 0:02:56.2]} 5. g3 {[%clk 0:02:57.1]} 5...
Nge7 {[%clk 0:02:53.2]} 6. Bg2 {[%clk 0:02:58]} 6... Ng6 {[%clk 0:02:53.4]} 7.
O-O {[%clk 0:02:58.3]} 7... Ngxe5 {[%clk 0:02:50.7]} 8. Nxe5 {[%clk 0:02:57.7]}
8... Nxe5 {[%clk 0:02:50.5]} 9. Nd2 {[%clk 0:02:58.6]} 9... Be7 {[%clk
0:02:47.6]} 10. b3 {[%clk 0:02:58]} 10... O-O {[%clk 0:02:45]} 11. Bb2 {[%clk
0:02:58.4]} 11... Bf6 {[%clk 0:02:44.3]} 12. Ne4 {[%clk 0:02:55.5]} 12... Nc6
{[%clk 0:02:24]} 13. Nxf6+ {[%clk 0:02:46]} 13... Qxf6 {[%clk 0:02:24.9]} 14.
Bxc6 {[%clk 0:02:42.2]} 14... Qxc6 {[%clk 0:02:18.8]} 15. Qxd4 {[%clk 0:02:42]}
15... f6 {[%clk 0:02:13.2]} 16. Qd5+ {[%clk 0:02:25.7]} 16... Qxd5 {[%clk
0:02:12.2]} 17. cxd5 {[%clk 0:02:26.6]} 17... Bg4 {[%clk 0:02:10.1]} 18. f3
{[%clk 0:02:26.3]} 18... Bh3 {[%clk 0:02:05]} 19. Rfc1 {[%clk 0:02:22.9]} 19...
Rfe8 {[%clk 0:01:57.6]} 20. Kf2 {[%clk 0:02:18.1]} 20... Re7 {[%clk 0:01:54.4]}
21. Rc2 {[%clk 0:02:06.6]} 21... Bf5 {[%clk 0:01:44.9]} 22. e4 {[%clk
0:02:06.1]} 22... Bg6 {[%clk 0:01:45]} 23. Rac1 {[%clk 0:02:05]} 23... Rc8
{[%clk 0:01:37.7]} 24. d6 {[%clk 0:02:02.1]} 24... Rd7 {[%clk 0:01:33]} 25. Rxc7
{[%clk 0:01:59.9]} 25... Rdxc7 {[%clk 0:01:28.8]} 26. Rxc7 {[%clk 0:01:53]}
26... Rd8 {[%clk 0:01:26.5]} 27. Ba3 {[%clk 0:01:14.6]} 27... Be8 {[%clk
0:01:01.8]} 28. Rxb7 {[%clk 0:01:10.4]} 28... a6 {[%clk 0:01:02]} 29. Ke3 {[%clk
0:01:08.7]} 29... Bb5 {[%clk 0:00:56.3]} 30. Kd4 {[%clk 0:01:06]} 30... Kf8
{[%clk 0:00:50]} 31. f4 {[%clk 0:01:01.1]} 31... Ke8 {[%clk 0:00:49.7]} 32. Re7+
{[%clk 0:00:58.8]} 32... Kf8 {[%clk 0:00:48.6]} 33. Rc7 {[%clk 0:00:58.7]} 33...
Rd7 {[%clk 0:00:42.2]} 34. e5 {[%clk 0:00:57.2]} 34... fxe5+ {[%clk 0:00:40.4]}
35. fxe5 {[%clk 0:00:58.1]} 35... Kf7 {[%clk 0:00:40.1]} 36. Kd5 {[%clk
0:00:52.6]} 36... Ke8 {[%clk 0:00:14.6]} 37. e6 {[%clk 0:00:49.9]} 37... Rd8
{[%clk 0:00:14.7]} 38. Rxg7 {[%clk 0:00:41.1]} 38... Kf8 {[%clk 0:00:14]} 39.
e7+ {[%clk 0:00:39.1]} 39... Ke8 {[%clk 0:00:12.6]} 40. exd8=Q+ {[%clk
0:00:36.9]} 40... Kxd8 {[%clk 0:00:13.5]} 41. Ke6 {[%clk 0:00:35.4]} 41... Kc8
{[%clk 0:00:12.1]} 42. d7+ {[%clk 0:00:33.4]} 1-0

[Event "Late-Titled-Tuesday-Blitz-September-26-2023"]
[Site "Chess.com"]
[Date "2023.09.26"]
[Round "3"]
[White "Dhaydon19"]
[Black "VincentKeymer"]
[Result "0-1"]
[WhiteElo "2743"]
[BlackElo "3045"]
[TimeControl "180+1"]
[EndTime "14:27:17 PDT"]
[Termination "VincentKeymer won by resignation"]

1. d4 {[%clk 0:03:00.9]} 1... Nf6 {[%clk 0:02:59.7]} 2. Nc3 {[%clk 0:03:00]}
2... d5 {[%clk 0:02:59.7]} 3. Bf4 {[%clk 0:03:00.1]} 3... c5 {[%clk 0:02:59.8]}
4. e3 {[%clk 0:02:58.8]} 4... cxd4 {[%clk 0:02:59.7]} 5. exd4 {[%clk 0:02:58.1]}
5... Bg4 {[%clk 0:02:59.5]} 6. Be2 {[%clk 0:02:56.9]} 6... Bxe2 {[%clk
0:02:59.2]} 7. Ngxe2 {[%clk 0:02:57]} 7... Nc6 {[%clk 0:02:57.5]} 8. O-O {[%clk
0:02:56.8]} 8... e6 {[%clk 0:02:57.9]} 9. Qd3 {[%clk 0:02:54.8]} 9... Rc8 {[%clk
0:02:44.6]} 10. a3 {[%clk 0:02:52.9]} 10... Bd6 {[%clk 0:02:38.8]} 11. Bxd6
{[%clk 0:02:50.4]} 11... Qxd6 {[%clk 0:02:39.7]} 12. Nd1 {[%clk 0:02:48.3]}
12... O-O {[%clk 0:02:32.1]} 13. Ne3 {[%clk 0:02:47.1]} 13... Na5 {[%clk
0:02:32.4]} 14. c3 {[%clk 0:02:44.6]} 14... a6 {[%clk 0:02:30.3]} 15. Rac1
{[%clk 0:02:40.4]} 15... b5 {[%clk 0:02:30.1]} 16. Rc2 {[%clk 0:02:39.6]} 16...
Nc4 {[%clk 0:02:29.9]} 17. Ng3 {[%clk 0:02:31.8]} 17... h6 {[%clk 0:02:28.8]}
18. Re1 {[%clk 0:02:30.2]} 18... Rc7 {[%clk 0:02:27.5]} 19. Ngf1 {[%clk
0:02:30]} 19... Rfc8 {[%clk 0:02:26.6]} 20. Nd2 {[%clk 0:02:28.5]} 20... a5
{[%clk 0:02:25.2]} 21. Nf3 {[%clk 0:02:22.8]} 21... Nd7 {[%clk 0:02:11.4]} 22.
Ng4 {[%clk 0:02:14.4]} 22... b4 {[%clk 0:02:08.3]} 23. cxb4 {[%clk 0:02:09.8]}
23... axb4 {[%clk 0:02:08]} 24. a4 {[%clk 0:02:03.4]} 24... Qf8 {[%clk
0:01:56.7]} 25. Ree2 {[%clk 0:01:48.1]} 25... Rc6 {[%clk 0:00:58]} 26. h4 {[%clk
0:01:42.7]} 26... R8c7 {[%clk 0:00:49.9]} 27. b3 {[%clk 0:01:39.2]} 27... Na3
{[%clk 0:00:49.5]} 28. Rxc6 {[%clk 0:01:38.2]} 28... Rxc6 {[%clk 0:00:50.4]} 29.
Re3 {[%clk 0:01:27]} 29... Nc2 {[%clk 0:00:37.7]} 30. Re2 {[%clk 0:01:23]} 30...
Rc3 {[%clk 0:00:37.3]} 31. Qb5 {[%clk 0:01:18.1]} 31... Qc8 {[%clk 0:00:31.6]}
32. h5 {[%clk 0:01:07.8]} 32... Qc7 {[%clk 0:00:15.3]} 33. Nge5 {[%clk
0:01:06.9]} 33... Nxe5 {[%clk 0:00:15.3]} 34. Qe8+ {[%clk 0:01:05.5]} 34... Kh7
{[%clk 0:00:14.3]} 35. Nxe5 {[%clk 0:01:05.7]} 35... Nxd4 {[%clk 0:00:13.3]} 36.
Re1 {[%clk 0:00:50]} 36... Rc1 {[%clk 0:00:13.4]} 37. Nd3 {[%clk 0:00:49.6]}
37... Rxe1+ {[%clk 0:00:13.1]} 38. Nxe1 {[%clk 0:00:50.3]} 38... Qc1 {[%clk
0:00:13.2]} 39. Qxf7 {[%clk 0:00:46]} 39... Qxe1+ {[%clk 0:00:13.1]} 40. Kh2
{[%clk 0:00:46.6]} 40... Qe5+ {[%clk 0:00:13.2]} 41. Kg1 {[%clk 0:00:41.9]}
41... Qf6 {[%clk 0:00:11.1]} 42. Qa7 {[%clk 0:00:41.5]} 42... Nxb3 {[%clk
0:00:11]} 43. a5 {[%clk 0:00:41.7]} 43... Qa1+ {[%clk 0:00:10.7]} 44. Kh2 {[%clk
0:00:41]} 44... Nxa5 {[%clk 0:00:11.2]} 45. Qf7 {[%clk 0:00:39.8]} 45... Qf6
{[%clk 0:00:10.8]} 46. Qc7 {[%clk 0:00:38.1]} 46... Nc4 {[%clk 0:00:10.8]} 47.
Qxc4 {[%clk 0:00:36.8]} 47... dxc4 {[%clk 0:00:10.8]} 0-1

[Event "Late-Titled-Tuesday-Blitz-September-26-2023"]
[Site "Chess.com"]
[Date "2023.09.26"]
[Round "3"]
[White "MaxLeto"]
[Black "ferrufino64"]
[Result "1-0"]
[WhiteElo "2517"]
[BlackElo "2195"]
[TimeControl "180+1"]
[EndTime "14:27:21 PDT"]
[Termination "MaxLeto won on time"]

1. g4 {[%clk 0:02:56.1]} 1... d5 {[%clk 0:02:36.8]} 2. Bg2 {[%clk 0:02:55.8]}
2... e5 {[%clk 0:02:36.2]} 3. d4 {[%clk 0:02:55]} 3... e4 {[%clk 0:02:31.9]} 4.
g5 {[%clk 0:02:51.8]} 4... Bd6 {[%clk 0:02:28]} 5. c4 {[%clk 0:02:51.7]} 5... c6
{[%clk 0:02:27.8]} 6. Nc3 {[%clk 0:02:51.8]} 6... Be6 {[%clk 0:02:27.5]} 7. Qb3
{[%clk 0:02:42.1]} 7... b6 {[%clk 0:02:06.3]} 8. cxd5 {[%clk 0:02:35.4]} 8...
cxd5 {[%clk 0:02:06.5]} 9. Bd2 {[%clk 0:02:24]} 9... Ne7 {[%clk 0:02:01.1]} 10.
Nb5 {[%clk 0:02:01.7]} 10... O-O {[%clk 0:01:49.2]} 11. Nxd6 {[%clk 0:01:53.5]}
11... Qxd6 {[%clk 0:01:49.3]} 12. Bb4 {[%clk 0:01:54.4]} 12... Qd7 {[%clk
0:01:43.1]} 13. e3 {[%clk 0:01:26.2]} 13... Nbc6 {[%clk 0:01:42.5]} 14. h4
{[%clk 0:01:15.8]} 14... Rfc8 {[%clk 0:01:23.2]} 15. Ne2 {[%clk 0:00:55.2]}
15... Nf5 {[%clk 0:01:03.8]} 16. h5 {[%clk 0:00:31.5]} 16... g6 {[%clk
0:00:28.3]} 17. Bc3 {[%clk 0:00:27.4]} 17... Qe7 {[%clk 0:00:19.9]} 18. Nf4
{[%clk 0:00:23]} 18... Qxg5 {[%clk 0:00:09.9]} 19. hxg6 {[%clk 0:00:15.1]} 19...
hxg6 {[%clk 0:00:08.7]} 20. Bh3 {[%clk 0:00:09.4]} 20... Na5 {[%clk 0:00:07.5]}
21. Qa4 {[%clk 0:00:06.2]} 21... Nc4 {[%clk 0:00:06.9]} 22. O-O-O {[%clk
0:00:04]} 22... Nfxe3 {[%clk 0:00:04.7]} 23. fxe3 {[%clk 0:00:03.9]} 23... Nxe3
{[%clk 0:00:05]} 24. Nxe6 {[%clk 0:00:04.3]} 24... fxe6 {[%clk 0:00:04.4]} 25.
Rdg1 {[%clk 0:00:04.4]} 25... Ng2+ {[%clk 0:00:04.1]} 26. Kb1 {[%clk 0:00:04]}
26... Rxc3 {[%clk 0:00:03.9]} 27. bxc3 {[%clk 0:00:03.9]} 27... Qe3 {[%clk
0:00:01.3]} 28. Rxg2 {[%clk 0:00:04.2]} 28... Qd3+ {[%clk 0:00:01.5]} 29. Qc2
{[%clk 0:00:04.3]} 29... Qc4 {[%clk 0:00:01.5]} 30. Rxg6+ {[%clk 0:00:03.7]} 1-0

[Event "Late-Titled-Tuesday-Blitz-September-26-2023"]
[Site "Chess.com"]
[Date "2023.09.26"]
[Round "3"]
[White "Pedrada88"]
[Black "PepeCuenca"]
[Result "1-0"]
[WhiteElo "2506"]
[BlackElo "2686"]
[TimeControl "180+1"]
[EndTime "14:27:23 PDT"]
[Termination "Pedrada88 won by checkmate"]

1. Nf3 {[%clk 0:02:59]} 1... Nf6 {[%clk 0:02:54.5]} 2. g3 {[%clk 0:02:59.1]}
2... b6 {[%clk 0:02:52.5]} 3. Bg2 {[%clk 0:02:59.1]} 3... Bb7 {[%clk 0:02:53.1]}
4. O-O {[%clk 0:02:59.7]} 4... g6 {[%clk 0:02:51.6]} 5. b3 {[%clk 0:02:57.5]}
5... Bg7 {[%clk 0:02:51.3]} 6. Bb2 {[%clk 0:02:58.1]} 6... O-O {[%clk
0:02:51.9]} 7. c4 {[%clk 0:02:57.7]} 7... d6 {[%clk 0:02:46.8]} 8. Nc3 {[%clk
0:02:55]} 8... e5 {[%clk 0:02:38.2]} 9. d4 {[%clk 0:02:49.8]} 9... exd4 {[%clk
0:02:35.8]} 10. Nxd4 {[%clk 0:02:47.9]} 10... Bxg2 {[%clk 0:02:36.7]} 11. Kxg2
{[%clk 0:02:48.4]} 11... d5 {[%clk 0:02:27.1]} 12. cxd5 {[%clk 0:02:23.7]} 12...
Nxd5 {[%clk 0:02:26.3]} 13. Rc1 {[%clk 0:02:23]} 13... c5 {[%clk 0:02:08.1]} 14.
Nf3 {[%clk 0:02:18.1]} 14... Nxc3 {[%clk 0:02:04.1]} 15. Bxc3 {[%clk 0:02:15.4]}
15... Bxc3 {[%clk 0:02:03.7]} 16. Rxc3 {[%clk 0:02:16.3]} 16... Nc6 {[%clk
0:02:02.7]} 17. Rd3 {[%clk 0:02:13.6]} 17... Qc8 {[%clk 0:01:52.1]} 18. Qd2
{[%clk 0:02:06.9]} 18... Rd8 {[%clk 0:01:48.9]} 19. Rd1 {[%clk 0:01:52.6]} 19...
Rxd3 {[%clk 0:01:35.8]} 20. Qxd3 {[%clk 0:01:53.5]} 20... Nb4 {[%clk 0:01:29.6]}
21. Qe3 {[%clk 0:01:46.6]} 21... Qe8 {[%clk 0:01:02.6]} 22. Qh6 {[%clk
0:01:36.2]} 22... Qf8 {[%clk 0:01:00.6]} 23. Qh4 {[%clk 0:01:25.4]} 23... Nc6
{[%clk 0:00:38.8]} 24. Rd7 {[%clk 0:01:16.2]} 24... h6 {[%clk 0:00:29.4]} 25.
Qf6 {[%clk 0:01:11.1]} 25... Rc8 {[%clk 0:00:24.9]} 26. h4 {[%clk 0:01:02.2]}
26... Qg7 {[%clk 0:00:24.5]} 27. Qd6 {[%clk 0:01:00.6]} 27... Qf8 {[%clk
0:00:24.7]} 28. Qd5 {[%clk 0:00:55.5]} 28... Qe8 {[%clk 0:00:17.1]} 29. e4
{[%clk 0:00:49]} 29... Rd8 {[%clk 0:00:15.7]} 30. Rxd8 {[%clk 0:00:42.9]} 30...
Nxd8 {[%clk 0:00:16.6]} 31. h5 {[%clk 0:00:38.6]} 31... g5 {[%clk 0:00:11.7]}
32. Ne5 {[%clk 0:00:34.8]} 32... Ne6 {[%clk 0:00:06.1]} 33. Ng4 {[%clk 0:00:32]}
33... Qf8 {[%clk 0:00:02.8]} 34. Qd7 {[%clk 0:00:25.9]} 34... Qg7 {[%clk
0:00:02.4]} 35. Qxa7 {[%clk 0:00:25]} 35... Qd4 {[%clk 0:00:02]} 36. Nxh6+
{[%clk 0:00:19.1]} 36... Kh7 {[%clk 0:00:01.7]} 37. Qxf7+ {[%clk 0:00:18.9]}
37... Kh8 {[%clk 0:00:01.4]} 38. Qg8# {[%clk 0:00:18]} 1-0

[Event "Late-Titled-Tuesday-Blitz-September-26-2023"]
[Site "Chess.com"]
[Date "2023.09.26"]
[Round "3"]
[White "jk13"]
[Black "Manukyan_Artak"]
[Result "1-0"]
[WhiteElo "2617"]
[BlackElo "2430"]
[TimeControl "180+1"]
[EndTime "14:27:25 PDT"]
[Termination "jk13 won by resignation"]

1. e4 {[%clk 0:02:57.1]} 1... c6 {[%clk 0:02:58.5]} 2. Nc3 {[%clk 0:02:56.9]}
2... d5 {[%clk 0:02:57.4]} 3. Nf3 {[%clk 0:02:56.9]} 3... dxe4 {[%clk
0:02:57.5]} 4. Nxe4 {[%clk 0:02:57.8]} 4... Nf6 {[%clk 0:02:58]} 5. Qe2 {[%clk
0:02:57.9]} 5... Nxe4 {[%clk 0:02:58]} 6. Qxe4 {[%clk 0:02:58.8]} 6... Qd5
{[%clk 0:02:58.3]} 7. Qf4 {[%clk 0:02:58.3]} 7... Qf5 {[%clk 0:02:58.6]} 8. Qa4
{[%clk 0:02:57.7]} 8... e5 {[%clk 0:02:54.8]} 9. Bd3 {[%clk 0:02:50.3]} 9... Qe6
{[%clk 0:02:47.3]} 10. O-O {[%clk 0:02:49.2]} 10... Bd6 {[%clk 0:02:42.6]} 11.
Re1 {[%clk 0:02:47.3]} 11... O-O {[%clk 0:02:40.4]} 12. Bxh7+ {[%clk 0:02:38]}
12... Kh8 {[%clk 0:02:39.5]} 13. Qh4 {[%clk 0:02:24.9]} 13... Qg4 {[%clk
0:02:38.1]} 14. Qxg4 {[%clk 0:02:20]} 14... Bxg4 {[%clk 0:02:37.3]} 15. Bd3
{[%clk 0:01:49]} 15... Bxf3 {[%clk 0:02:34.8]} 16. gxf3 {[%clk 0:01:49.9]} 16...
Nd7 {[%clk 0:02:31.5]} 17. Bc4 {[%clk 0:01:32.5]} 17... b5 {[%clk 0:02:15.6]}
18. Bf1 {[%clk 0:01:31.5]} 18... g6 {[%clk 0:02:11.8]} 19. d3 {[%clk 0:01:25.5]}
19... Kg7 {[%clk 0:02:11.7]} 20. a4 {[%clk 0:01:20.2]} 20... b4 {[%clk 0:02:09]}
21. a5 {[%clk 0:01:17.5]} 21... Nc5 {[%clk 0:02:01.7]} 22. Be3 {[%clk
0:01:12.8]} 22... Ne6 {[%clk 0:02:00.2]} 23. Bg2 {[%clk 0:01:06]} 23... Nf4
{[%clk 0:01:58.5]} 24. Bf1 {[%clk 0:00:58.4]} 24... c5 {[%clk 0:01:57.9]} 25. c3
{[%clk 0:00:54.3]} 25... bxc3 {[%clk 0:01:44.6]} 26. bxc3 {[%clk 0:00:54.2]}
26... Ne6 {[%clk 0:01:27.7]} 27. a6 {[%clk 0:00:52.7]} 27... Rh8 {[%clk
0:01:25.8]} 28. Reb1 {[%clk 0:00:44.5]} 28... Rac8 {[%clk 0:01:13.9]} 29. Rb7
{[%clk 0:00:43.3]} 29... Rc7 {[%clk 0:01:14]} 30. Rab1 {[%clk 0:00:42.8]} 30...
Rhc8 {[%clk 0:01:13.4]} 31. Be2 {[%clk 0:00:37.6]} 31... Nd8 {[%clk 0:01:07]}
32. R7b5 {[%clk 0:00:35.1]} 32... Rc6 {[%clk 0:00:58.9]} 33. Ra1 {[%clk
0:00:34.5]} 33... Rb8 {[%clk 0:00:54]} 34. Rxb8 {[%clk 0:00:30.5]} 34... Bxb8
{[%clk 0:00:54.9]} 35. d4 {[%clk 0:00:30.9]} 35... cxd4 {[%clk 0:00:39.8]} 36.
cxd4 {[%clk 0:00:31.8]} 36... f6 {[%clk 0:00:35.3]} 37. d5 {[%clk 0:00:29.8]}
37... Rc2 {[%clk 0:00:32.5]} 38. Bf1 {[%clk 0:00:27.5]} 38... Nf7 {[%clk
0:00:22.6]} 39. Rb1 {[%clk 0:00:26.9]} 39... Bd6 {[%clk 0:00:21.4]} 40. Bxa7
{[%clk 0:00:23.2]} 40... Ra2 {[%clk 0:00:19.5]} 41. Rb7 {[%clk 0:00:19.7]} 41...
Kf8 {[%clk 0:00:18.6]} 42. Be3 {[%clk 0:00:19.8]} 42... Ng5 {[%clk 0:00:18.5]}
43. Bxg5 {[%clk 0:00:19.2]} 43... fxg5 {[%clk 0:00:19.4]} 44. a7 {[%clk
0:00:19.7]} 44... e4 {[%clk 0:00:19.8]} 45. fxe4 {[%clk 0:00:19.3]} 45... g4
{[%clk 0:00:17.9]} 46. Rb8+ {[%clk 0:00:19.2]} 1-0

[Event "Late-Titled-Tuesday-Blitz-September-26-2023"]
[Site "Chess.com"]
[Date "2023.09.26"]
[Round "3"]
[White "moro182"]
[Black "MKlose11"]
[Result "1-0"]
[WhiteElo "2875"]
[BlackElo "2617"]
[TimeControl "180+1"]
[EndTime "14:27:26 PDT"]
[Termination "moro182 won by resignation"]

1. d4 {[%clk 0:03:00.9]} 1... Nf6 {[%clk 0:02:56.9]} 2. Nf3 {[%clk 0:03:01.2]}
2... c5 {[%clk 0:02:57.3]} 3. d5 {[%clk 0:03:00.6]} 3... b5 {[%clk 0:02:55.7]}
4. e4 {[%clk 0:03:00.5]} 4... Nxe4 {[%clk 0:02:50.8]} 5. Bd3 {[%clk 0:02:58.2]}
5... Qa5+ {[%clk 0:02:50]} 6. c3 {[%clk 0:02:57.2]} 6... Nf6 {[%clk 0:02:46.1]}
7. O-O {[%clk 0:02:56.5]} 7... e6 {[%clk 0:02:41.2]} 8. a4 {[%clk 0:02:49.9]}
8... Nxd5 {[%clk 0:02:28.3]} 9. Bxb5 {[%clk 0:02:46.5]} 9... Be7 {[%clk
0:02:21.4]} 10. Na3 {[%clk 0:02:46]} 10... O-O {[%clk 0:02:16.3]} 11. Re1 {[%clk
0:02:45.9]} 11... Ba6 {[%clk 0:02:07.5]} 12. Bg5 {[%clk 0:02:27.7]} 12... Bxg5
{[%clk 0:02:00.5]} 13. Nxg5 {[%clk 0:02:28.6]} 13... h6 {[%clk 0:02:01.1]} 14.
Ne4 {[%clk 0:02:27.2]} 14... Bxb5 {[%clk 0:01:54.7]} 15. axb5 {[%clk 0:02:26.9]}
15... f5 {[%clk 0:01:48.7]} 16. Nxc5 {[%clk 0:02:23.9]} 16... Qc7 {[%clk
0:01:44.4]} 17. Nd3 {[%clk 0:02:18.9]} 17... a6 {[%clk 0:01:39.8]} 18. Qf3
{[%clk 0:01:43.9]} 18... axb5 {[%clk 0:01:28.9]} 19. Nxb5 {[%clk 0:01:44.8]}
19... Qc6 {[%clk 0:01:29.3]} 20. Rxa8 {[%clk 0:01:44.5]} 20... Qxa8 {[%clk
0:01:30.2]} 21. c4 {[%clk 0:01:43.9]} 21... Nb6 {[%clk 0:01:30.1]} 22. Qxa8
{[%clk 0:01:43.7]} 22... Nxa8 {[%clk 0:01:30.4]} 23. Ne5 {[%clk 0:01:35.9]}
23... Nb6 {[%clk 0:01:27.4]} 24. Rd1 {[%clk 0:01:32.5]} 24... Rc8 {[%clk
0:01:23]} 25. b3 {[%clk 0:01:31.6]} 25... d5 {[%clk 0:01:16]} 26. Nd6 {[%clk
0:01:20.9]} 26... Rd8 {[%clk 0:01:09.7]} 27. c5 {[%clk 0:01:19.5]} 27... N6d7
{[%clk 0:01:08.7]} 28. Nxd7 {[%clk 0:01:18]} 28... Nxd7 {[%clk 0:01:06.9]} 29.
b4 {[%clk 0:01:15.4]} 29... Rb8 {[%clk 0:01:03]} 30. c6 {[%clk 0:01:13.8]} 30...
Nb6 {[%clk 0:01:03]} 31. c7 {[%clk 0:01:12.6]} 31... Ra8 {[%clk 0:01:02.1]} 32.
Rc1 {[%clk 0:01:11.8]} 32... Kh7 {[%clk 0:00:51.5]} 33. g4 {[%clk 0:01:09.5]}
33... Ra4 {[%clk 0:00:43.7]} 34. gxf5 {[%clk 0:01:07.6]} 34... exf5 {[%clk
0:00:38.9]} 35. Rc6 {[%clk 0:01:00]} 35... Rxb4 {[%clk 0:00:38.9]} 36. Rxb6
{[%clk 0:00:57.4]} 36... Rxb6 {[%clk 0:00:39.8]} 37. c8=Q {[%clk 0:00:58]} 37...
Rxd6 {[%clk 0:00:39.8]} 38. Qxf5+ {[%clk 0:00:58.3]} 38... Kg8 {[%clk
0:00:34.4]} 39. Qe5 {[%clk 0:00:57.9]} 39... Rd8 {[%clk 0:00:17.9]} 40. Qe7
{[%clk 0:00:57.1]} 40... Rf8 {[%clk 0:00:16]} 41. Qe6+ {[%clk 0:00:57]} 41...
Kh8 {[%clk 0:00:16.3]} 42. Qxd5 {[%clk 0:00:57.9]} 42... Rf6 {[%clk 0:00:17]}
43. Kg2 {[%clk 0:00:58.1]} 43... Kh7 {[%clk 0:00:17.4]} 44. Kg3 {[%clk
0:00:58.2]} 44... Kh8 {[%clk 0:00:18.3]} 45. h4 {[%clk 0:00:58.4]} 45... Kh7
{[%clk 0:00:19.2]} 46. h5 {[%clk 0:00:57.8]} 46... Kh8 {[%clk 0:00:19.8]} 47.
Qe4 {[%clk 0:00:57]} 47... Kg8 {[%clk 0:00:19.4]} 48. f4 {[%clk 0:00:57.3]}
48... Kh8 {[%clk 0:00:20.3]} 49. Kf3 {[%clk 0:00:57.8]} 49... Kg8 {[%clk
0:00:21]} 50. Ke3 {[%clk 0:00:58.4]} 50... Kf7 {[%clk 0:00:21.7]} 51. Kd4 {[%clk
0:00:58.7]} 51... Kf8 {[%clk 0:00:21.7]} 52. Qa8+ {[%clk 0:00:56.9]} 52... Kf7
{[%clk 0:00:21.9]} 53. Qd5+ {[%clk 0:00:56.1]} 53... Kf8 {[%clk 0:00:21.8]} 54.
Ke5 {[%clk 0:00:55.6]} 54... Ke7 {[%clk 0:00:12]} 55. Qg8 {[%clk 0:00:54.9]}
55... Rf7 {[%clk 0:00:12.4]} 56. f5 {[%clk 0:00:53.6]} 1-0